bitfinex/quotes_BTCUSD_20251230
["timestamp","ask_amount","ask_price","bid_price","bid_amount"]
[1767076663326,0.00050413,87429.0,87421.0,0.01143889]
[1767076663556,0.00050413,87429.0,87420.0,0.01143902]
[1767076664684,0.00050413,87429.0,87419.0,0.5306316]
[1767076665250,0.00050413,87429.0,87420.0,0.01143902]
[1767076665476,0.00050413,87429.0,87419.0,0.51919244]
[1767076665706,0.00050413,87429.0,87419.0,0.5306316]
[1767076669053,0.00050413,87429.0,87419.0,0.51919244]
[1767076669773,0.00050413,87429.0,87419.0,0.5306316]
[1767076670212,0.00050413,87429.0,87419.0,0.51919244]
[1767076670602,0.01194198,87429.0,87419.0,0.51919244]
[1767076670953,0.00050413,87429.0,87419.0,0.51919244]
[1767076671581,0.01194198,87429.0,87419.0,0.51919244]
[1767076672002,0.00050413,87429.0,87419.0,0.51919244]
[1767076672637,0.01194198,87429.0,87419.0,0.51919244]
[1767076673000,0.00050413,87429.0,87419.0,0.51919244]
[1767076676622,0.00050413,87429.0,87419.0,0.51865373]
[1767076676825,0.01194198,87429.0,87419.0,0.51865373]
[1767076678042,0.01143798,87428.0,87419.0,0.51865373]
[1767076678257,0.01143811,87427.0,87419.0,0.51865373]
[1767076679362,0.01143811,87427.0,87415.0,0.01143968]
[1767076680044,0.01143798,87428.0,87416.0,0.01143955]
[1767076680677,0.01194198,87429.0,87417.0,0.01143942]
[1767076681003,0.00050413,87429.0,87418.0,0.01143929]
[1767076681200,0.00050413,87429.0,87419.0,0.01143916]
[1767076681503,4.13e-06,87429.0,87419.0,0.01143916]
[1767076681725,1.48e-06,87432.0,87423.0,0.05719279]
[1767076681900,0.01144,87435.0,87427.0,0.01143811]
[1767076682711,0.06861789,87441.0,87435.0,0.000586]
[1767076682712,0.01144,87441.0,87435.0,0.000586]
[1767076682910,0.01143615,87442.0,87430.0,0.51865373]
[1767076683071,0.01144,87440.0,87430.0,0.53009145]
[1767076683277,0.01144,87440.0,87430.0,0.51865373]
[1767076683479,0.02287641,87440.0,87430.0,0.51865373]
[1767076683725,0.01144,87440.0,87430.0,0.51865373]
[1767076684400,0.01143654,87439.0,87430.0,0.51865373]
[1767076685240,0.02287641,87440.0,87430.0,0.51865373]
[1767076685639,0.01144,87440.0,87430.0,0.51865373]
[1767076686390,0.01144,87440.0,87430.0,0.53009145]
[1767076687390,0.01139751,87440.0,87430.0,0.51865373]
[1767076688502,0.01143641,87440.0,87430.0,0.51865373]
[1767076688935,0.02287628,87441.0,87430.0,0.51865373]
[1767076689516,0.01144,87441.0,87430.0,0.51865373]
[1767076689721,0.01144,87441.0,87433.0,0.01143732]
[1767076689939,0.01144,87441.0,87431.0,0.01143759]
[1767076690180,0.01144,87441.0,87430.0,0.53009145]
[1767076690396,0.01144,87441.0,87431.0,0.01143759]
[1767076690592,0.01144,87441.0,87430.0,0.53009145]
[1767076690959,0.01144,87441.0,87430.0,0.51865373]
[1767076691355,0.02287628,87441.0,87430.0,0.51865373]
[1767076691581,0.01144,87441.0,87430.0,0.51865373]
[1767076691776,0.01144,87441.0,87430.0,0.53009145]
[1767076692198,0.01144,87441.0,87431.0,0.01143759]
[1767076692500,0.01144,87441.0,87430.0,0.53009145]
[1767076692644,0.01144,87441.0,87431.0,0.01143759]
[1767076692849,0.01144,87441.0,87431.0,0.07143759]
[1767076695017,0.01143641,87440.0,87431.0,0.06]
[1767076695211,0.01144,87441.0,87431.0,0.06]
[1767076695360,0.01144,87441.0,87431.0,0.07143759]
[1767076695560,0.01144,87441.0,87431.0,0.06]
[1767076696889,0.18839333,87440.0,87431.0,0.06]
[1767076697109,0.01143654,87439.0,87431.0,0.06]
[1767076697725,0.18839333,87440.0,87431.0,0.06]
[1767076697937,0.11977427,87440.0,87431.0,0.06]
[1767076698128,0.13121068,87440.0,87431.0,0.06]
[1767076699113,0.01143667,87438.0,87431.0,0.06]
[1767076699330,0.13121068,87440.0,87431.0,0.06]
[1767076702017,0.01143667,87438.0,87431.0,0.06]
[1767076702557,0.11977427,87440.0,87431.0,0.06]
[1767076702755,0.13121068,87440.0,87431.0,0.06]
[1767076704173,0.01143654,87439.0,87431.0,0.06]
[1767076704339,0.11977427,87440.0,87431.0,0.06]
[1767076704538,0.13121068,87440.0,87431.0,0.06]
[1767076705565,0.01143654,87439.0,87426.0,0.06862937]
[1767076705769,0.01143641,87440.0,87420.0,0.51865373]
[1767076705971,0.02287628,87441.0,87429.0,0.01143785]
[1767076706167,0.01144,87441.0,87429.0,0.01143785]
[1767076706491,0.01144,87441.0,87430.0,0.01143772]
[1767076706852,0.51865373,87440.0,87430.0,0.01143772]
[1767076707048,0.51865373,87440.0,87429.0,0.01143785]
[1767076707478,0.51865373,87440.0,87428.0,0.01143798]
[1767076707634,0.51865373,87440.0,87429.0,0.01143785]
[1767076707834,0.51865373,87440.0,87428.0,0.01143798]
[1767076708054,0.53009014,87440.0,87427.0,0.15541811]
[1767076708262,0.01143654,87439.0,87427.0,0.15541811]
[1767076708459,0.53009014,87440.0,87428.0,0.01143798]
[1767076708898,0.51865373,87440.0,87428.0,0.01143798]
[1767076709095,0.51865373,87440.0,87429.0,0.01143785]
[1767076709736,0.51865373,87440.0,87428.0,0.01143798]
[1767076709737,0.53009014,87440.0,87428.0,0.01143798]
[1767076709906,0.51865373,87440.0,87427.0,0.14398]
[1767076710303,0.51865373,87440.0,87429.0,0.01113787]
[1767076710543,0.53009014,87440.0,87428.0,0.01143798]
[1767076711008,0.01143667,87438.0,87427.0,0.14398]
[1767076711310,0.01143654,87439.0,87426.0,0.01143824]
[1767076711856,0.53009014,87440.0,87428.0,0.01143798]
[1767076712055,0.01143654,87439.0,87427.0,0.01143811]
[1767076712360,0.53009014,87440.0,87428.0,0.01143798]
[1767076712568,0.51865373,87440.0,87428.0,0.01143798]
[1767076713179,0.51865373,87440.0,87429.0,0.01143785]
[1767076713378,0.53009014,87440.0,87429.0,0.14398]
[1767076713759,0.01143654,87439.0,87429.0,0.14398]
[1767076714195,0.53009014,87440.0,87429.0,0.14398]
[1767076714785,0.01143654,87439.0,87429.0,0.14398]
[1767076715150,0.53009014,87440.0,87429.0,0.14398]
[1767076715349,0.01143654,87439.0,87429.0,0.14398]
[1767076715946,0.53009014,87440.0,87429.0,0.14398]
[1767076716981,0.38009014,87440.0,87429.0,0.14398]
[1767076717186,0.000513,87429.0,87423.0,0.0001076]
[1767076717384,0.05719187,87425.0,87423.0,0.0001076]
[1767076717717,0.01143929,87418.0,87412.0,0.0002]
[1767076717903,0.04560942,87417.0,87407.0,0.01144]
[1767076718067,0.06899532,87417.0,87407.0,0.01144]
[1767076718263,0.01143929,87418.0,87407.0,0.01144]
[1767076718445,0.01143916,87419.0,87407.0,0.01179877]
[1767076718661,0.01143955,87416.0,87407.0,0.01179877]
[1767076718846,0.01143942,87417.0,87407.0,0.01179877]
[1767076719053,0.53009275,87420.0,87407.0,0.01179877]
[1767076719349,0.01143929,87418.0,87405.0,0.01144]
[1767076719558,0.01143942,87417.0,87405.0,0.02288099]
[1767076719701,0.01179806,87418.0,87405.0,0.02288099]
[1767076720399,0.01143942,87417.0,87405.0,0.02288099]
[1767076720816,0.01143942,87417.0,87405.0,0.01144]
[1767076721022,0.01143942,87417.0,87405.0,0.02288099]
[1767076721859,0.01179806,87418.0,87406.0,0.01144086]
[1767076722219,0.01179806,87418.0,87413.0,0.06]
[1767076722535,0.01143942,87417.0,87413.0,0.06]
[1767076722732,0.01179806,87418.0,87413.0,0.06]
[1767076723101,0.01179806,87418.0,87406.0,0.01144086]
[1767076723302,0.00035877,87418.0,87405.0,0.0800858]
[1767076723657,0.00035877,87418.0,87408.0,0.0114406]
[1767076723859,0.00035877,87418.0,87407.0,0.01144073]
[1767076725243,0.00035877,87418.0,87405.0,0.01144]
[1767076725446,0.00035877,87418.0,87406.0,0.01144086]
[1767076726641,0.01179806,87418.0,87406.0,0.01144086]
[1767076727253,0.01179806,87418.0,87414.0,0.06]
[1767076728074,0.01143942,87417.0,87414.0,0.06]
[1767076728276,0.01179806,87418.0,87414.0,0.059487]
[1767076728477,0.05719828,87416.0,87414.0,0.059487]
[1767076728751,0.06863653,87417.0,87414.0,0.04421057]
[1767076729502,0.01143955,87416.0,87405.0,0.01144]
[1767076729706,0.01143968,87415.0,87405.0,0.01144]
[1767076730501,0.01143994,87413.0,87405.0,0.01144]
[1767076730686,0.0114402,87411.0,87405.0,0.01144]
[1767076730983,0.01144046,87409.0,87401.0,0.0002]
[1767076731178,0.01144046,87409.0,87401.0,0.01164]
[1767076731383,0.01144033,87410.0,87401.0,0.01164]
[1767076731723,4.6e-07,87409.0,87401.0,0.01164]
[1767076731903,0.0114406,87408.0,87401.0,0.0002]
[1767076732311,0.01144092,87409.0,87401.0,0.0002]
[1767076733192,0.0114406,87408.0,87401.0,0.0002]
[1767076733374,0.01144092,87409.0,87401.0,0.0002]
[1767076735179,0.0114406,87408.0,87401.0,0.0002]
[1767076735375,0.01144092,87409.0,87401.0,0.0002]
[1767076735578,0.01144,87410.0,87401.0,0.0002]
[1767076735789,0.01089,87410.0,87401.0,0.0002]
[1767076735972,0.02233033,87410.0,87401.0,0.0002]
[1767076736353,0.01089,87410.0,87401.0,0.0002]
[1767076736694,0.3918566,87411.0,87401.0,0.0002]
[1767076736994,0.01144,87415.0,87401.0,0.01164151]
[1767076737141,0.01143942,87417.0,87404.0,0.01144112]
[1767076737344,0.01143929,87418.0,87404.0,0.01179989]
[1767076737630,0.01144,87424.0,87412.0,0.0002]
[1767076737799,0.01143955,87416.0,87412.0,0.0002]
[1767076738099,0.01143942,87417.0,87412.0,0.0002]
[1767076738655,0.0228785,87424.0,87412.0,0.0002]
[1767076739210,0.01143889,87421.0,87412.0,0.0002]
[1767076739644,0.01143902,87420.0,87412.0,0.0002]
[1767076739849,0.01143916,87419.0,87412.0,0.0002]
[1767076740254,0.05719183,87426.0,87412.0,0.0002]
[1767076740453,0.01144,87424.0,87412.0,0.0002]
[1767076740669,0.01143863,87423.0,87415.0,0.06]
[1767076740869,0.01144,87424.0,87415.0,0.06]
[1767076741298,0.56528375,87430.0,87415.0,0.06]
[1767076741299,0.01198507,87430.0,87415.0,0.06]
[1767076741495,0.01198507,87430.0,87415.0,0.07143968]
[1767076741695,0.01198507,87430.0,87416.0,0.01143955]
[1767076742270,0.01198507,87430.0,87420.0,0.5189764]
[1767076742546,0.00054735,87430.0,87420.0,0.5189764]
[1767076742745,0.01198507,87430.0,87420.0,0.5189764]
[1767076743138,0.01143785,87429.0,87417.0,0.01144]
[1767076743329,0.01143785,87429.0,87417.0,0.02287942]
[1767076743699,0.01143785,87429.0,87417.0,0.01144]
[1767076744146,0.01143785,87429.0,87417.0,0.02287942]
[1767076744353,0.01198507,87430.0,87419.0,0.5189764]
[1767076744550,0.01143785,87429.0,87419.0,0.5189764]
[1767076745292,0.01198507,87430.0,87419.0,0.5189764]
[1767076745293,0.00054735,87430.0,87419.0,0.5189764]
[1767076745568,0.00054735,87430.0,87419.0,0.53041556]
[1767076745730,0.00054735,87430.0,87419.0,0.5189764]
[1767076745931,0.01198507,87430.0,87419.0,0.5189764]
[1767076746312,0.01143785,87429.0,87419.0,0.5189764]
[1767076746711,0.01198507,87430.0,87419.0,0.5189764]
[1767076747360,0.00054735,87430.0,87419.0,0.5189764]
[1767076747965,0.01198507,87430.0,87419.0,0.5189764]
[1767076748173,0.01143785,87429.0,87419.0,0.5189764]
[1767076748742,0.01198507,87430.0,87419.0,0.5189764]
[1767076749566,0.00054735,87430.0,87419.0,0.5189764]
[1767076749820,0.01198507,87430.0,87419.0,0.5189764]
[1767076750023,0.00054735,87430.0,87419.0,0.5189764]
[1767076750379,0.01198507,87430.0,87420.0,0.5189764]
[1767076750619,0.00054735,87430.0,87420.0,0.5189764]
[1767076751720,0.00054735,87430.0,87420.0,0.53041542]
[1767076751873,0.00054735,87430.0,87420.0,0.5189764]
[1767076752073,0.01198507,87430.0,87420.0,0.5189764]
[1767076752325,0.00054735,87430.0,87420.0,0.5189764]
[1767076752971,0.00054735,87430.0,87420.0,0.53041542]
[1767076753432,0.00054735,87430.0,87421.0,0.01143889]
[1767076754278,0.00054735,87430.0,87422.0,0.01143876]
[1767076754906,0.00054735,87430.0,87423.0,0.01143863]
[1767076755101,0.00054735,87430.0,87422.0,0.01143876]
[1767076755306,0.00054735,87430.0,87423.0,0.01143863]
[1767076756375,0.00054735,87430.0,87424.0,0.0114385]
[1767076756527,0.00054735,87430.0,87423.0,0.01143863]
[1767076756722,0.00054735,87430.0,87424.0,0.0114385]
[1767076757207,0.00054735,87430.0,87423.0,0.01143863]
[1767076757408,0.00054735,87430.0,87424.0,0.0114385]
[1767076757907,0.00054735,87430.0,87423.0,0.01143863]
[1767076758256,0.00054735,87430.0,87422.0,0.01143876]
[1767076758463,0.00054735,87430.0,87423.0,0.01143863]
[1767076759284,0.00054735,87430.0,87422.0,0.01143876]
[1767076759712,0.00054735,87430.0,87423.0,0.01143863]
[1767076759913,0.00054735,87430.0,87422.0,0.01143876]
[1767076760725,0.00054735,87430.0,87423.0,0.01143863]
[1767076760936,0.0003888,87432.0,87425.0,0.01143837]
[1767076761140,0.0003888,87432.0,87429.0,0.01143785]
[1767076761332,0.0003888,87432.0,87428.0,0.01143798]
[1767076761539,0.0003888,87432.0,87429.0,0.01143785]
[1767076761744,0.0003888,87432.0,87428.0,0.01143798]
[1767076762683,0.0003888,87432.0,87429.0,0.01143785]
[1767076763019,0.0003888,87432.0,87426.0,0.05719121]
[1767076763221,0.0003888,87432.0,87424.0,0.0228785]
[1767076763532,0.0003888,87432.0,87428.0,0.01143798]
[1767076763943,0.0003888,87432.0,87427.0,0.01143811]
[1767076764325,0.02287628,87441.0,87424.0,0.08007094]
[1767076764326,0.00029688,87441.0,87429.0,0.04576]
[1767076764507,0.024682,87466.0,87448.0,0.01143536]
[1767076764790,0.0004079,87468.0,87457.0,0.01143419]
[1767076765017,0.0004079,87468.0,87459.0,0.01143392]
[1767076765226,0.0004079,87468.0,87458.0,0.54189045]
[1767076765449,0.0004079,87468.0,87460.0,0.01143379]
[1767076765677,0.0004079,87468.0,87458.0,0.5304564]
[1767076765914,0.00051557,87468.0,87458.0,0.5304564]
[1767076766117,0.00051557,87468.0,87459.0,0.01143392]
[1767076766567,0.00051557,87468.0,87458.0,0.54189045]
[1767076766715,0.00051557,87468.0,87459.0,0.01143392]
[1767076766897,0.00051557,87468.0,87458.0,0.54189045]
[1767076767096,0.00051557,87468.0,87462.0,0.06]
[1767076767298,0.01143314,87465.0,87458.0,0.00977584]
[1767076767523,0.01194832,87468.0,87458.0,0.01093]
[1767076767685,0.01143288,87467.0,87458.0,0.01093]
[1767076767881,0.01143288,87467.0,87457.0,0.01148]
[1767076768826,0.01194832,87468.0,87457.0,0.01148]
[1767076769024,0.01143301,87466.0,87457.0,0.01148]
[1767076769239,0.01143288,87467.0,87457.0,0.01148]
[1767076769711,0.01143288,87467.0,87454.0,0.01143458]
[1767076769912,0.01143288,87467.0,87455.0,0.01148]
[1767076770280,0.00051557,87468.0,87455.0,0.01148]
[1767076770560,0.01143288,87467.0,87455.0,0.02291445]
[1767076770712,0.01143288,87467.0,87455.0,0.01148]
[1767076771188,0.01143471,87453.0,87446.0,0.01148]
[1767076771392,0.01143484,87452.0,87446.0,0.01148]
[1767076771530,0.01143458,87454.0,87446.0,0.01148]
[1767076772380,0.01143445,87455.0,87446.0,0.01148]
[1767076772540,0.01143458,87454.0,87446.0,0.01148]
[1767076773367,0.01143445,87455.0,87446.0,0.01148]
[1767076773746,0.01143458,87454.0,87446.0,0.01148]
[1767076775940,0.01143471,87453.0,87446.0,0.01148]
[1767076776850,0.01143484,87452.0,87440.0,0.5189764]
[1767076777048,0.0114351,87450.0,87441.0,0.01148]
[1767076777314,0.01143471,87453.0,87441.0,0.01148]
[1767076777519,0.01143471,87453.0,87450.0,0.000549]
[1767076777640,0.01143458,87454.0,87441.0,0.02291628]
[1767076779105,0.01143471,87453.0,87441.0,0.02291628]
[1767076779320,0.01143458,87454.0,87441.0,0.01148]
[1767076779546,0.01143458,87454.0,87441.0,0.02291628]
[1767076779772,0.01143458,87454.0,87442.0,0.01143615]
[1767076779923,0.01143471,87453.0,87441.0,0.01148]
[1767076780133,0.01143458,87454.0,87441.0,0.02291628]
[1767076780593,0.01143471,87453.0,87441.0,0.01148]
[1767076780798,0.01143458,87454.0,87441.0,0.02291628]
[1767076781212,0.01143471,87453.0,87442.0,0.01148]
[1767076781413,0.01143445,87455.0,87442.0,0.02291615]
[1767076781811,0.01143471,87453.0,87442.0,0.01148]
[1767076782058,0.01143484,87452.0,87442.0,0.01148]
[1767076783705,0.01143471,87453.0,87442.0,0.01148]
[1767076787965,0.01143458,87454.0,87442.0,0.01148]
[1767076788222,0.01143471,87453.0,87442.0,0.01148]
[1767076789209,0.01139308,87453.0,87442.0,0.01148]
[1767076790939,0.01143458,87454.0,87442.0,0.01148]
[1767076791296,0.01143471,87453.0,87442.0,0.01148]
[1767076792011,0.01143484,87452.0,87442.0,0.01148]
[1767076792374,0.01143484,87452.0,87435.0,0.07087706]
[1767076792375,0.01143523,87449.0,87435.0,0.07087706]
[1767076792500,0.01143523,87449.0,87436.0,0.02287693]
[1767076792701,0.01143523,87449.0,87437.0,0.0114368]
[1767076792905,0.5189764,87450.0,87438.0,0.01143667]
[1767076793730,0.5189764,87450.0,87439.0,0.01143654]
[1767076794246,0.5304115,87450.0,87438.0,0.01143667]
[1767076794444,0.5304115,87450.0,87437.0,0.0114368]
[1767076794597,0.01143523,87449.0,87436.0,0.02287693]
[1767076794813,0.01143523,87449.0,87437.0,0.0114368]
[1767076795458,0.5304115,87450.0,87437.0,0.0114368]
[1767076796743,0.5189764,87450.0,87437.0,0.06862048]
[1767076797149,0.5189764,87450.0,87440.0,0.01143641]
[1767076797351,0.01144,87456.0,87450.0,0.000549]
[1767076797784,0.01144,87456.0,87444.0,0.01143589]
[1767076798088,0.01144,87456.0,87445.0,0.01143575]
[1767076798473,0.01144,87456.0,87446.0,0.01143562]
[1767076798667,0.01144,87456.0,87445.0,0.01143575]
[1767076798870,0.01144,87456.0,87446.0,0.01143562]
[1767076799596,0.01144,87456.0,87445.0,0.01143575]
[1767076800404,0.01144,87456.0,87446.0,0.01143562]
[1767076800813,0.01144,87456.0,87448.0,0.01143536]
[1767076800976,0.01144,87456.0,87447.0,0.01143549]
[1767076801177,0.01144,87456.0,87445.0,0.01143575]
[1767076802193,0.01144,87456.0,87443.0,0.01143602]
[1767076802380,0.01144,87456.0,87441.0,0.01143628]
[1767076802718,0.02287432,87456.0,87443.0,0.01143602]
[1767076802893,0.02287432,87456.0,87443.0,0.02287602]
[1767076803239,0.06860834,87453.0,87443.0,0.01144]
[1767076803424,0.01143471,87453.0,87443.0,0.01144]
[1767076803652,0.01143458,87454.0,87443.0,0.01144]
[1767076803980,0.01143445,87455.0,87443.0,0.01144]
[1767076804341,0.01143458,87454.0,87443.0,0.01144]
[1767076804561,0.01143445,87455.0,87443.0,0.01144]
[1767076804726,0.01143458,87454.0,87443.0,0.01144]
[1767076804930,0.01143458,87454.0,87440.0,0.01143641]
[1767076805127,0.01143471,87453.0,87441.0,0.02287628]
[1767076805295,0.01143471,87453.0,87441.0,0.01144]
[1767076805496,0.01143471,87453.0,87441.0,0.02287628]
[1767076805892,0.01143458,87454.0,87442.0,0.01143615]
[1767076806198,0.01143445,87455.0,87442.0,0.01143615]
[1767076807156,0.01144,87456.0,87445.0,0.01143575]
[1767076807557,0.01143405,87458.0,87446.0,0.01143562]
[1767076807762,0.05656779,87459.0,87446.0,0.01143562]
[1767076807955,0.01143419,87457.0,87445.0,0.01143575]
[1767076808255,0.01143419,87457.0,87444.0,0.01143589]
[1767076808551,0.01143432,87456.0,87443.0,0.01143602]
[1767076810384,0.01143419,87457.0,87444.0,0.01143589]
[1767076810580,0.01143432,87456.0,87444.0,0.01143589]
[1767076810781,0.01143405,87458.0,87444.0,0.01143589]
[1767076811102,0.01143405,87458.0,87445.0,0.01143575]
[1767076811306,0.01143419,87457.0,87443.0,0.01143602]
[1767076811512,0.01143432,87456.0,87443.0,0.01143602]
[1767076811880,0.01143419,87457.0,87444.0,0.01143589]
[1767076812095,0.01143419,87457.0,87445.0,0.01143575]
[1767076812280,0.01143419,87457.0,87444.0,0.01143589]
[1767076812814,0.01143445,87455.0,87442.0,0.01143615]
[1767076812981,0.01143432,87456.0,87443.0,0.01143602]
[1767076813676,0.01143445,87455.0,87442.0,0.01143615]
[1767076813998,0.01143445,87455.0,87443.0,0.01143602]
[1767076814723,0.01143432,87456.0,87443.0,0.01143602]
[1767076815571,0.01143432,87456.0,87442.0,0.01143615]
[1767076815769,0.01143445,87455.0,87443.0,0.01143602]
[1767076816076,0.01143432,87456.0,87443.0,0.01143602]
[1767076817951,0.01143445,87455.0,87443.0,0.01143602]
[1767076818336,0.01143445,87455.0,87442.0,0.01143615]
[1767076818645,0.01143445,87455.0,87441.0,0.02287628]
[1767076818810,0.01143458,87454.0,87442.0,0.01143615]
[1767076819211,0.01143458,87454.0,87441.0,0.02287628]
[1767076819958,0.01143458,87454.0,87442.0,0.01143615]
[1767076820312,0.51846321,87452.0,87436.0,0.01143693]
[1767076820519,0.51846321,87452.0,87433.0,0.01143732]
[1767076820520,0.01143523,87449.0,87437.0,0.01144]
[1767076820704,0.0114351,87450.0,87437.0,0.0228768]
[1767076820904,0.01143497,87451.0,87437.0,0.0228768]
[1767076821103,0.51846321,87452.0,87440.0,0.01143641]
[1767076821312,0.51846321,87452.0,87439.0,0.01143654]
[1767076821313,0.01143471,87453.0,87439.0,0.01143654]
[1767076821513,0.01143471,87453.0,87441.0,0.01143628]
[1767076821786,0.01143471,87453.0,87439.0,0.01143654]
[1767076821787,0.01143445,87455.0,87443.0,0.01143602]
[1767076822125,0.01143445,87455.0,87442.0,0.01143615]
[1767076824642,0.01143445,87455.0,87443.0,0.01143602]
[1767076825276,0.01143432,87456.0,87443.0,0.01143602]
[1767076826032,0.01143445,87455.0,87447.0,0.06]
[1767076827106,0.01156115,87455.0,87447.0,0.06]
[1767076828491,0.0001267,87455.0,87447.0,0.06]
[1767076829214,0.01156115,87455.0,87447.0,0.06]
[1767076830536,0.0001267,87455.0,87447.0,0.06]
[1767076831411,7e-07,87455.0,87447.0,0.06]
[1767076831610,0.01139821,87459.0,87448.0,0.01143536]
[1767076832210,0.01139821,87459.0,87449.0,0.51846321]
[1767076833232,0.01139821,87459.0,87447.0,0.07143549]
[1767076833507,0.02283213,87459.0,87449.0,0.51846321]
[1767076833832,0.02283213,87459.0,87447.0,0.07144]
[1767076834896,0.01143405,87458.0,87447.0,0.07144]
[1767076835291,0.02283213,87459.0,87447.0,0.08287549]
[1767076835508,0.01139821,87459.0,87447.0,0.08287549]
[1767076837987,0.01139821,87459.0,87448.0,0.01143536]
[1767076838338,0.01143405,87458.0,87447.0,0.07144]
[1767076838798,0.01143419,87457.0,87447.0,0.07144]
[1767076839389,0.01143432,87456.0,87447.0,0.07144]
[1767076840465,0.01143419,87457.0,87447.0,0.07144]
[1767076842003,0.01143432,87456.0,87447.0,0.07144]
[1767076843980,0.01143405,87458.0,87447.0,0.07144]
[1767076844313,0.02283213,87459.0,87447.0,0.07144]
[1767076845554,0.01143405,87458.0,87447.0,0.07144]
[1767076848963,0.01139821,87459.0,87447.0,0.08287549]
[1767076849169,0.01139821,87459.0,87448.0,0.01143536]
[1767076850251,0.01139821,87459.0,87447.0,0.08287549]
[1767076850458,0.02283213,87459.0,87447.0,0.07144]
[1767076850675,0.01139821,87459.0,87448.0,0.01143536]
[1767076850878,0.01139821,87459.0,87449.0,0.01143523]
[1767076851794,0.01139821,87459.0,87450.0,0.0114351]
[1767076852379,0.01139821,87459.0,87449.0,0.01143523]
[1767076852694,0.01139821,87459.0,87450.0,0.0114351]
[1767076853449,0.01139821,87459.0,87451.0,0.01143497]
[1767076854204,0.01139821,87459.0,87452.0,0.01143484]
[1767076854504,0.01097521,87459.0,87452.0,0.01143484]
[1767076854838,0.01097521,87459.0,87453.0,0.01143471]
[1767076855210,0.01097521,87459.0,87450.0,0.0114351]
[1767076855369,0.01097521,87459.0,87452.0,0.01143484]
[1767076855711,0.01097521,87459.0,87451.0,0.01143497]
[1767076855854,0.01097521,87459.0,87452.0,0.01143484]
[1767076856058,0.01097521,87459.0,87451.0,0.01143497]
[1767076856665,0.01097521,87459.0,87450.0,0.0114351]
[1767076857286,0.01097521,87459.0,87449.0,0.52989844]
[1767076857484,0.01097521,87459.0,87450.0,0.0114351]
[1767076857685,0.01097521,87459.0,87451.0,0.01143497]
[1767076858034,0.01097521,87459.0,87450.0,0.0114351]
[1767076858813,0.01097521,87459.0,87451.0,0.01143497]
[1767076860397,0.01097521,87459.0,87450.0,0.0114351]
[1767076860825,0.0114334,87463.0,87450.0,0.0114351]
[1767076861779,0.14951,87464.0,87451.0,0.01143497]
[1767076861980,0.14951,87464.0,87452.0,0.01143484]
[1767076862283,0.0114334,87463.0,87450.0,0.0114351]
[1767076862496,0.16094327,87464.0,87451.0,0.01143497]
[1767076863240,0.0114334,87463.0,87450.0,0.0114351]
[1767076863998,0.16094327,87464.0,87451.0,0.01143497]
[1767076864205,0.0114334,87463.0,87450.0,0.0114351]
[1767076865050,0.0114334,87463.0,87451.0,0.01143497]
[1767076865255,0.0114334,87463.0,87450.0,0.0114351]
[1767076865661,0.16094327,87464.0,87451.0,0.01143497]
[1767076865895,0.01144,87464.0,87454.0,0.01143458]
[1767076866710,0.01144,87464.0,87456.0,0.01143432]
[1767076866908,0.0001883,87465.0,87456.0,0.01143432]
[1767076867882,0.0001883,87465.0,87457.0,0.01143419]
[1767076868016,0.0001883,87465.0,87456.0,0.01143432]
[1767076868438,0.0001883,87465.0,87454.0,0.51834848]
[1767076868780,0.0001883,87465.0,87455.0,0.01143445]
[1767076869057,0.0001883,87465.0,87456.0,0.01143432]
[1767076869437,0.0001883,87465.0,87455.0,0.01143445]
[1767076869639,0.0001883,87465.0,87456.0,0.01143432]
[1767076869817,0.0001883,87465.0,87455.0,0.01143445]
[1767076870493,0.0001883,87465.0,87456.0,0.01143432]
[1767076872606,0.0001883,87465.0,87457.0,0.01143419]
[1767076872775,0.0001883,87465.0,87459.0,0.01143392]
[1767076873294,0.0001883,87465.0,87460.0,0.01143379]
[1767076873463,0.0001883,87465.0,87459.0,0.01143392]
[1767076874496,0.0001883,87465.0,87460.0,0.01143379]
[1767076874696,0.0001883,87465.0,87458.0,0.01143405]
[1767076875090,0.0001883,87465.0,87457.0,0.01143419]
[1767076876015,0.0001883,87465.0,87458.0,0.01143405]
[1767076877492,0.0001883,87465.0,87459.0,0.01143392]
[1767076877713,0.0001883,87465.0,87458.0,0.01143405]
[1767076878072,0.0001883,87465.0,87460.0,0.01143379]
[1767076878272,0.0001883,87465.0,87458.0,0.01143405]
[1767076878477,0.0001883,87465.0,87456.0,0.01143432]
[1767076878680,0.000549,87458.0,87455.0,0.52978293]
[1767076878890,0.000549,87458.0,87455.0,0.01143445]
[1767076879093,0.0001883,87465.0,87455.0,0.01143445]
[1767076879308,0.0001883,87465.0,87454.0,0.02287458]
[1767076879830,0.0001883,87465.0,87455.0,0.01143445]
[1767076880034,0.0001883,87465.0,87454.0,0.02287458]
[1767076880589,0.0001883,87465.0,87455.0,0.01143445]
[1767076881139,0.000549,87455.0,87454.0,0.01144]
[1767076881392,0.000549,87455.0,87453.0,0.01144]
[1767076881596,0.01143366,87461.0,87453.0,0.01144]
[1767076881795,0.01143353,87462.0,87453.0,0.01144]
[1767076882007,0.01143353,87462.0,87453.0,0.06]
[1767076882363,0.01143353,87462.0,87453.0,1e-06]
[1767076882696,0.01143379,87460.0,87453.0,1e-06]
[1767076882865,0.01143392,87459.0,87453.0,1e-06]
[1767076883249,0.01143379,87460.0,87452.0,0.01144]
[1767076883447,0.0114334,87463.0,87452.0,0.01144]
[1767076883754,0.01143353,87462.0,87452.0,0.01144]
[1767076884155,0.0114334,87463.0,87452.0,0.01144]
[1767076884669,0.0001883,87465.0,87453.0,0.01143471]
[1767076885007,0.01162144,87465.0,87453.0,0.01143471]
[1767076885169,0.01162144,87465.0,87452.0,0.02287484]
[1767076886302,0.01143327,87464.0,87452.0,0.01144]
[1767076886702,0.01143327,87464.0,87452.0,0.02287484]
[1767076887310,0.0114334,87463.0,87452.0,0.01144]
[1767076887621,0.01143327,87464.0,87452.0,0.01144]
[1767076888142,0.01143301,87466.0,87453.0,0.01143471]
[1767076888323,0.02216144,87465.0,87452.0,0.02287484]
[1767076888521,0.0107283,87464.0,87452.0,0.02287484]
[1767076888694,0.0107283,87464.0,87453.0,0.01143471]
[1767076888894,0.0107283,87464.0,87452.0,0.02287484]
[1767076889334,0.01143301,87466.0,87452.0,0.02287484]
[1767076889335,0.1386463,87467.0,87455.0,0.01143445]
[1767076889492,0.01072857,87466.0,87455.0,0.01143445]
[1767076889841,0.01072857,87465.0,87457.0,0.01143419]
[1767076890052,0.1386463,87467.0,87457.0,0.01143419]
[1767076890245,0.01072854,87466.0,87456.0,0.5297828]
[1767076890390,0.1386463,87467.0,87456.0,0.5297828]
[1767076890391,0.01072854,87465.0,87456.0,0.5297828]
[1767076890594,0.1386463,87467.0,87456.0,0.5297828]
[1767076890858,0.0107286,87466.0,87456.0,0.51834848]